[Event "Live Chess"]
[Site "Chess.com"]
[Date "2024.06.02"]
[Round "-"]
[White "Grace6363"]
[Black "degringolade64"]
[Result "1/2-1/2"]
[WhiteElo "1129"]
[BlackElo "2098"]
[TimeControl "300"]
[EndTime "6:24:32 PDT"]
[Termination "Game drawn by agreement"]

1. d4 {[%clk 0:04:56.9]} 1... Nf6 {[%clk 0:04:58]} 2. c4 {[%clk 0:04:56.2]} 2...
e6 {[%clk 0:04:57]} 3. Nf3 {[%clk 0:04:55]} 3... d5 {[%clk 0:04:55.4]} 4. cxd5
{[%clk 0:04:53.2]} 4... exd5 {[%clk 0:04:54]} 5. a3 {[%clk 0:04:52.8]} 5... c6
{[%clk 0:04:46.9]} 6. Bg5 {[%clk 0:04:51.8]} 6... Be7 {[%clk 0:04:45.3]} 7. Nc3
{[%clk 0:04:51.3]} 7... h6 {[%clk 0:04:42.9]} 8. Bh4 {[%clk 0:04:50.3]} 8... Bf5
{[%clk 0:04:39.1]} 9. e3 {[%clk 0:04:49.2]} 9... O-O {[%clk 0:04:36.1]} 10. Bd3
{[%clk 0:04:48.7]} 10... Bxd3 {[%clk 0:04:34.5]} 11. Qxd3 {[%clk 0:04:48.3]}
11... Ne4 {[%clk 0:04:27.5]} 12. Bxe7 {[%clk 0:04:46.6]} 12... Qxe7 {[%clk
0:04:26.2]} 13. O-O {[%clk 0:04:46.1]} 13... Nd7 {[%clk 0:04:24.1]} 14. Rac1
{[%clk 0:04:44.4]} 14... a5 {[%clk 0:04:16.4]} 15. Nd2 {[%clk 0:04:38.1]} 15...
f5 {[%clk 0:04:10.2]} 16. f3 {[%clk 0:04:36.8]} 16... Nd6 {[%clk 0:04:04.3]} 17.
e4 {[%clk 0:04:32.6]} 17... fxe4 {[%clk 0:04:01.2]} 18. fxe4 {[%clk 0:04:31.8]}
18... dxe4 {[%clk 0:03:51.9]} 19. Ndxe4 {[%clk 0:04:29]} 19... Nxe4 {[%clk
0:03:23.7]} 20. Qxe4 {[%clk 0:04:25.5]} 20... Qxe4 {[%clk 0:03:17.5]} 21. Nxe4
{[%clk 0:04:24.8]} 21... Rae8 {[%clk 0:03:16.8]} 22. Rxf8+ {[%clk 0:04:22.7]}
22... Rxf8 {[%clk 0:03:12.7]} 23. Nd6 {[%clk 0:04:21.5]} 23... Nf6 {[%clk
0:02:36.4]} 24. Nxb7 {[%clk 0:04:16.7]} 24... Rb8 {[%clk 0:02:35.2]} 25. Nxa5
{[%clk 0:04:11.6]} 25... Rxb2 {[%clk 0:02:34.1]} 26. Nxc6 {[%clk 0:04:06.5]}
26... Ne4 {[%clk 0:02:32.4]} 27. Ne7+ {[%clk 0:03:46.2]} 27... Kf7 {[%clk
0:02:29.2]} 28. Nf5 {[%clk 0:03:41.6]} 28... Ra2 {[%clk 0:02:21.1]} 29. Rf1
{[%clk 0:03:32.3]} 29... Kg8 {[%clk 0:02:12.2]} 30. d5 {[%clk 0:03:21.7]} 30...
Rxa3 {[%clk 0:02:09.8]} 31. d6 {[%clk 0:03:20.8]} 31... Rd3 {[%clk 0:02:07.9]}
32. Ne7+ {[%clk 0:03:17.5]} 32... Kh7 {[%clk 0:02:03.6]} 33. Nc8 {[%clk
0:03:13.1]} 33... Nxd6 {[%clk 0:02:00]} 34. Nxd6 {[%clk 0:03:11.7]} 34... Rxd6
{[%clk 0:01:59.7]} 35. h3 {[%clk 0:03:10.3]} 35... h5 {[%clk 0:01:57.2]} 1/2-1/2

[Event "Live Chess"]
[Site "Chess.com"]
[Date "2024.06.02"]
[Round "-"]
[White "TigerTank70"]
[Black "CarmelJane"]
[Result "0-1"]
[WhiteElo "2196"]
[BlackElo "1998"]
[TimeControl "300"]
[EndTime "6:24:35 PDT"]
[Termination "CarmelJane won on time"]

1. e4 {[%clk 0:04:58.1]} 1... c5 {[%clk 0:04:58]} 2. d4 {[%clk 0:04:57.1]} 2...
cxd4 {[%clk 0:04:56.5]} 3. c3 {[%clk 0:04:56.5]} 3... e6 {[%clk 0:04:53.1]} 4.
Nf3 {[%clk 0:04:54.8]} 4... Nf6 {[%clk 0:04:52.1]} 5. e5 {[%clk 0:04:53.5]} 5...
Nd5 {[%clk 0:04:51.3]} 6. c4 {[%clk 0:04:52.2]} 6... Bb4+ {[%clk 0:04:47.4]} 7.
Bd2 {[%clk 0:04:50.7]} 7... Bxd2+ {[%clk 0:04:43.5]} 8. Nbxd2 {[%clk 0:04:49.5]}
8... Nb6 {[%clk 0:04:37.6]} 9. Nxd4 {[%clk 0:04:48.2]} 9... Nc6 {[%clk
0:04:36.6]} 10. Nb5 {[%clk 0:04:46.1]} 10... Nxe5 {[%clk 0:04:32.1]} 11. Nd6+
{[%clk 0:04:44.6]} 11... Ke7 {[%clk 0:04:31.1]} 12. c5 {[%clk 0:04:43]} 12...
Nd5 {[%clk 0:04:24.9]} 13. Qh5 {[%clk 0:04:40.5]} 13... Ng6 {[%clk 0:04:06]} 14.
Bc4 {[%clk 0:04:34.2]} 14... Ndf4 {[%clk 0:03:58.1]} 15. Qg4 {[%clk 0:04:23.1]}
15... Qa5 {[%clk 0:03:50.4]} 16. g3 {[%clk 0:04:11.6]} 16... Qxc5 {[%clk
0:03:00.5]} 17. gxf4 {[%clk 0:04:09.8]} 17... Qxd6 {[%clk 0:02:56.8]} 18. f5
{[%clk 0:03:54.8]} 18... Qf4 {[%clk 0:02:44.9]} 19. Qh3 {[%clk 0:03:24.7]} 19...
Ne5 {[%clk 0:02:36.9]} 20. Qa3+ {[%clk 0:03:09.2]} 20... d6 {[%clk 0:02:24.5]}
21. Be2 {[%clk 0:03:06.9]} 21... Bd7 {[%clk 0:02:10.7]} 22. Rd1 {[%clk
0:03:03.9]} 22... Bc6 {[%clk 0:02:09.5]} 23. Rg1 {[%clk 0:02:55]} 23... g6
{[%clk 0:01:35.1]} 24. fxe6 {[%clk 0:02:38.9]} 24... fxe6 {[%clk 0:01:35]} 25.
Nb3 {[%clk 0:02:19.1]} 25... Rad8 {[%clk 0:01:30.2]} 26. Na5 {[%clk 0:02:16.1]}
26... Rhf8 {[%clk 0:01:26.7]} 27. Nxc6+ {[%clk 0:02:09.3]} 27... Nxc6 {[%clk
0:01:23.1]} 28. Rg2 {[%clk 0:01:58.6]} 28... Qb4+ {[%clk 0:01:19.8]} 29. Qxb4
{[%clk 0:01:56.9]} 29... Nxb4 {[%clk 0:01:19.7]} 30. a3 {[%clk 0:01:55.5]} 30...
Nd5 {[%clk 0:01:17.3]} 31. Bc4 {[%clk 0:01:50.5]} 31... Nf4 {[%clk 0:01:15.6]}
32. Rg3 {[%clk 0:01:44.6]} 32... d5 {[%clk 0:01:15]} 33. Bb3 {[%clk 0:01:42.1]}
33... e5 {[%clk 0:01:12.8]} 34. Kf1 {[%clk 0:01:36.8]} 34... d4 {[%clk
0:01:11.1]} 35. Re1 {[%clk 0:01:31.1]} 35... Kf6 {[%clk 0:01:09.5]} 36. Rg4
{[%clk 0:01:21.8]} 36... d3 {[%clk 0:01:07.7]} 37. Re3 {[%clk 0:01:09.8]} 37...
h5 {[%clk 0:01:02.2]} 38. Rgg3 {[%clk 0:01:06.2]} 38... d2 {[%clk 0:01:01.4]}
39. Bd1 {[%clk 0:01:04.5]} 39... Rc8 {[%clk 0:00:58.2]} 40. Rc3 {[%clk
0:01:01.6]} 40... Rxc3 {[%clk 0:00:44.8]} 41. Rxc3 {[%clk 0:01:01.5]} 41... Rf7
{[%clk 0:00:41.8]} 42. f3 {[%clk 0:00:54.2]} 42... Rd7 {[%clk 0:00:41.2]} 43.
Kf2 {[%clk 0:00:53.5]} 43... g5 {[%clk 0:00:40.2]} 44. Rb3 {[%clk 0:00:47.6]}
44... Nd3+ {[%clk 0:00:38.8]} 45. Ke2 {[%clk 0:00:43.8]} 45... Nc5 {[%clk
0:00:38.4]} 46. Rc3 {[%clk 0:00:39.2]} 46... b6 {[%clk 0:00:37.9]} 47. b4 {[%clk
0:00:37.7]} 47... Na4 {[%clk 0:00:34.4]} 48. Bxa4 {[%clk 0:00:35.8]} 48... Rd4
{[%clk 0:00:27.2]} 49. Rd3 {[%clk 0:00:31.8]} 49... Rh4 {[%clk 0:00:19.5]} 50.
Kxd2 {[%clk 0:00:27.8]} 50... Rxh2+ {[%clk 0:00:19]} 51. Ke3 {[%clk 0:00:27.1]}
51... Ra2 {[%clk 0:00:18.7]} 52. Bd7 {[%clk 0:00:21.6]} 52... h4 {[%clk
0:00:18.2]} 53. Bg4 {[%clk 0:00:18.4]} 53... Ra1 {[%clk 0:00:17.4]} 54. Rd6+
{[%clk 0:00:16.6]} 54... Ke7 {[%clk 0:00:16.2]} 55. Rd2 {[%clk 0:00:14.9]} 55...
Ke8 {[%clk 0:00:16.1]} 56. Ke4 {[%clk 0:00:14.1]} 56... Re1+ {[%clk 0:00:15.8]}
57. Kf5 {[%clk 0:00:13.2]} 57... Ra1 {[%clk 0:00:15.5]} 58. Ke6 {[%clk
0:00:12.4]} 58... Rxa3 {[%clk 0:00:15.1]} 59. Rc2 {[%clk 0:00:11.7]} 59... Kd8
{[%clk 0:00:13.8]} 60. Kd6 {[%clk 0:00:09.3]} 60... Rd3+ {[%clk 0:00:12.4]} 61.
Kxe5 {[%clk 0:00:08.6]} 61... Ke7 {[%clk 0:00:11.6]} 62. Ke4 {[%clk 0:00:07.9]}
62... Rd1 {[%clk 0:00:10.8]} 63. Rc7+ {[%clk 0:00:07.4]} 63... Kf6 {[%clk
0:00:10.3]} 64. Ke3 {[%clk 0:00:06.7]} 64... Re1+ {[%clk 0:00:10.2]} 65. Kf2
{[%clk 0:00:06.1]} 65... Ra1 {[%clk 0:00:09.5]} 66. Rc6+ {[%clk 0:00:05.6]}
66... Ke7 {[%clk 0:00:09.2]} 67. Rc7+ {[%clk 0:00:05.3]} 67... Kf8 {[%clk
0:00:08.9]} 68. Rh7 {[%clk 0:00:04.7]} 68... Kg8 {[%clk 0:00:08.1]} 69. Rb7
{[%clk 0:00:02.7]} 69... Ra2+ {[%clk 0:00:06.7]} 70. Ke3 {[%clk 0:00:02.6]}
70... Ra3+ {[%clk 0:00:06.2]} 71. Kd4 {[%clk 0:00:02.5]} 71... Rd3+ {[%clk
0:00:05.6]} 72. Ke5 {[%clk 0:00:02.4]} 72... Kf8 {[%clk 0:00:03.9]} 73. Kf6
{[%clk 0:00:02.3]} 73... Rd6+ {[%clk 0:00:02.5]} 74. Ke5 {[%clk 0:00:01.4]}
74... Rd7 {[%clk 0:00:02.4]} 75. Ke6 {[%clk 0:00:00.8]} 75... Ke8 {[%clk
0:00:02]} 76. Bh5+ {[%clk 0:00:00.3]} 76... Kd8 {[%clk 0:00:01.2]} 77. Rb8+
{[%clk 0:00:00.2]} 77... Kc7 {[%clk 0:00:00.5]} 78. Rb7+ {[%clk 0:00:00.1]}
78... Kc6 {[%clk 0:00:00.2]} 0-1

[Event "Live Chess"]
[Site "Chess.com"]
[Date "2024.06.02"]
[Round "-"]
[White "Ninifu"]
[Black "PETROMICH1967"]
[Result "1-0"]
[WhiteElo "2010"]
[BlackElo "1344"]
[TimeControl "300"]
[EndTime "6:24:35 PDT"]
[Termination "Ninifu won by checkmate"]

1. d4 {[%clk 0:04:54.3]} 1... Nf6 {[%clk 0:04:54.9]} 2. c4 {[%clk 0:04:53]} 2...
d6 {[%clk 0:04:53.9]} 3. Nc3 {[%clk 0:04:51.2]} 3... Nbd7 {[%clk 0:04:51.2]} 4.
e4 {[%clk 0:04:50.2]} 4... e6 {[%clk 0:04:47.6]} 5. f4 {[%clk 0:04:48.6]} 5...
g6 {[%clk 0:04:41.8]} 6. Nf3 {[%clk 0:04:47.7]} 6... Bg7 {[%clk 0:04:40.3]} 7.
Be2 {[%clk 0:04:43.1]} 7... c5 {[%clk 0:04:38.4]} 8. d5 {[%clk 0:04:39.3]} 8...
exd5 {[%clk 0:04:16.1]} 9. cxd5 {[%clk 0:04:37.4]} 9... O-O {[%clk 0:04:12.8]}
10. O-O {[%clk 0:04:30.2]} 10... a6 {[%clk 0:04:09.2]} 11. a4 {[%clk 0:04:28.6]}
11... Rb8 {[%clk 0:04:01.6]} 12. e5 {[%clk 0:04:23.1]} 12... dxe5 {[%clk
0:03:52.6]} 13. fxe5 {[%clk 0:04:22.3]} 13... Nxe5 {[%clk 0:03:29.7]} 14. Nxe5
{[%clk 0:04:19.1]} 14... Nxd5 {[%clk 0:03:28]} 15. Qxd5 {[%clk 0:04:09.7]} 15...
Qxd5 {[%clk 0:03:25.7]} 16. Nxd5 {[%clk 0:04:07]} 16... Bxe5 {[%clk 0:03:23.5]}
17. Bh6 {[%clk 0:03:29]} 17... Bg7 {[%clk 0:03:20]} 18. Bf4 {[%clk 0:03:20.1]}
18... Bd4+ {[%clk 0:03:08.3]} 19. Kh1 {[%clk 0:03:17.9]} 19... Be6 {[%clk
0:02:59.3]} 20. Bxb8 {[%clk 0:03:14.2]} 20... Bxd5 {[%clk 0:02:57.1]} 21. Bg3
{[%clk 0:03:04.4]} 21... Bxb2 {[%clk 0:02:46.6]} 22. Rab1 {[%clk 0:03:02.7]}
22... Bd4 {[%clk 0:02:44.5]} 23. Bf3 {[%clk 0:03:00.9]} 23... Bc4 {[%clk
0:02:38.1]} 24. Rfc1 {[%clk 0:02:55.7]} 24... b5 {[%clk 0:02:36.1]} 25. axb5
{[%clk 0:02:45.8]} 25... axb5 {[%clk 0:02:27.9]} 26. Bc6 {[%clk 0:02:41.5]}
26... Bd3 {[%clk 0:02:20.8]} 27. Rxb5 {[%clk 0:02:16.8]} 27... Bxb5 {[%clk
0:02:11]} 28. Bxb5 {[%clk 0:02:15.9]} 28... Rb8 {[%clk 0:02:08]} 29. Bc4 {[%clk
0:02:14.9]} 29... Rb2 {[%clk 0:01:59.1]} 30. h3 {[%clk 0:01:58.1]} 30... Kg7
{[%clk 0:01:53.8]} 31. Rf1 {[%clk 0:01:46.5]} 31... f5 {[%clk 0:01:52.7]} 32.
Re1 {[%clk 0:01:45.6]} 32... Bf6 {[%clk 0:01:43.5]} 33. Re8 {[%clk 0:01:21.4]}
33... Rb1+ {[%clk 0:01:38.4]} 34. Kh2 {[%clk 0:01:19.6]} 34... Rc1 {[%clk
0:01:37]} 35. Be6 {[%clk 0:01:12.8]} 35... Bg5 {[%clk 0:01:18.7]} 36. h4 {[%clk
0:01:09.7]} 36... Be3 {[%clk 0:01:13.1]} 37. Re7+ {[%clk 0:00:55.6]} 37... Kf6
{[%clk 0:01:08.6]} 38. Bd6 {[%clk 0:00:52.4]} 38... Bg1+ {[%clk 0:00:59.9]} 39.
Kh3 {[%clk 0:00:50.2]} 39... Bd4 {[%clk 0:00:57.5]} 40. Bd5 {[%clk 0:00:41]}
40... Rc3+ {[%clk 0:00:52.7]} 41. Kh2 {[%clk 0:00:33.3]} 41... f4 {[%clk
0:00:44.9]} 42. Rf7# {[%clk 0:00:30.2]} 1-0

[Event "Live Chess"]
[Site "Chess.com"]
[Date "2024.06.02"]
[Round "-"]
[White "McCarthyStone"]
[Black "booktrunk"]
[Result "1-0"]
[WhiteElo "2486"]
[BlackElo "1500"]
[TimeControl "300"]
[EndTime "6:25:02 PDT"]
[Termination "McCarthyStone won by resignation"]

1. b3 {[%clk 0:04:56.1]} 1... e6 {[%clk 0:04:55.4]} 2. Bb2 {[%clk 0:04:56]} 2...
Nf6 {[%clk 0:04:52.8]} 3. Nf3 {[%clk 0:04:53.9]} 3... Nc6 {[%clk 0:04:50.2]} 4.
d4 {[%clk 0:04:51.6]} 4... b6 {[%clk 0:04:48.6]} 5. e3 {[%clk 0:04:50.8]} 5...
Bb7 {[%clk 0:04:47]} 6. Nbd2 {[%clk 0:04:50.5]} 6... a5 {[%clk 0:04:44]} 7. a3
{[%clk 0:04:49.4]} 7... Ne7 {[%clk 0:04:40.5]} 8. Bd3 {[%clk 0:04:48.2]} 8...
Ng6 {[%clk 0:04:38.6]} 9. h4 {[%clk 0:04:45.5]} 9... Nh5 {[%clk 0:04:32.8]} 10.
Ng5 {[%clk 0:04:26.6]} 10... h6 {[%clk 0:04:23.1]} 11. Qxh5 {[%clk 0:04:22.2]}
11... hxg5 {[%clk 0:04:20.4]} 12. Qg4 {[%clk 0:04:16.5]} 12... f5 {[%clk
0:04:16.1]} 13. Qg3 {[%clk 0:04:06.8]} 13... Bd6 {[%clk 0:04:06.7]} 14. f4
{[%clk 0:04:05.9]} 14... gxh4 {[%clk 0:04:03.9]} 15. Qxg6+ {[%clk 0:04:04.9]}
15... Kf8 {[%clk 0:04:02.1]} 16. d5 {[%clk 0:04:00.7]} 16... Qe7 {[%clk
0:03:56.5]} 17. Nf3 {[%clk 0:03:52.1]} 17... Bxd5 {[%clk 0:03:53.8]} 18. c4
{[%clk 0:03:44.4]} 18... Bxf3 {[%clk 0:03:51.4]} 19. gxf3 {[%clk 0:03:44.3]}
19... Qf7 {[%clk 0:03:50.4]} 20. Qxf7+ {[%clk 0:03:30.2]} 20... Kxf7 {[%clk
0:03:49.3]} 21. Kf2 {[%clk 0:03:29.7]} 21... Rag8 {[%clk 0:03:46.8]} 22. Rag1
{[%clk 0:03:28.3]} 22... Rh7 {[%clk 0:03:45.1]} 23. Rh2 {[%clk 0:03:23.5]} 23...
Be7 {[%clk 0:03:43.9]} 24. e4 {[%clk 0:03:21.3]} 24... fxe4 {[%clk 0:03:41.3]}
25. Bxe4 {[%clk 0:03:20.2]} 25... Bf6 {[%clk 0:03:39.3]} 26. Bxf6 {[%clk
0:03:14.8]} 26... Kxf6 {[%clk 0:03:35.6]} 27. Bxh7 {[%clk 0:03:13.6]} 1-0

[Event "Live Chess"]
[Site "Chess.com"]
[Date "2024.06.02"]
[Round "-"]
[White "FMOlexandrProhorov"]
[Black "JoeyCage"]
[Result "0-1"]
[WhiteElo "2337"]
[BlackElo "2397"]
[TimeControl "300"]
[EndTime "6:25:07 PDT"]
[Termination "JoeyCage won by resignation"]

1. d4 {[%clk 0:04:58.9]} 1... e5 {[%clk 0:04:58]} 2. c4 {[%clk 0:04:58.8]} 2...
exd4 {[%clk 0:04:55.8]} 3. Qxd4 {[%clk 0:04:58.1]} 3... Nc6 {[%clk 0:04:54.6]}
4. Qd2 {[%clk 0:04:57.5]} 4... Nf6 {[%clk 0:04:53.5]} 5. b3 {[%clk 0:04:57]}
5... Bb4 {[%clk 0:04:50.8]} 6. Nc3 {[%clk 0:04:51.9]} 6... Ne4 {[%clk
0:04:48.7]} 7. Qe3 {[%clk 0:04:48.2]} 7... Bxc3+ {[%clk 0:04:47]} 8. Kd1 {[%clk
0:04:47.5]} 8... Bxa1 {[%clk 0:04:46]} 9. Qxe4+ {[%clk 0:04:47]} 9... Qe7 {[%clk
0:04:45]} 10. Qg4 {[%clk 0:04:45.2]} 10... O-O {[%clk 0:04:42.7]} 11. Nf3 {[%clk
0:04:44.3]} 11... d5 {[%clk 0:04:41.6]} 12. Qg3 {[%clk 0:04:40.9]} 12... dxc4
{[%clk 0:04:40]} 13. e4 {[%clk 0:04:38.7]} 13... Rd8+ {[%clk 0:04:37.5]} 14. Kc2
{[%clk 0:04:37.1]} 0-1

[Event "Live Chess"]
[Site "Chess.com"]
[Date "2024.06.02"]
[Round "-"]
[White "mrsmarple1968"]
[Black "bobby_jamesFischer86"]
[Result "1/2-1/2"]
[WhiteElo "1730"]
[BlackElo "1651"]
[TimeControl "300"]
[EndTime "6:25:32 PDT"]
[Termination "Game drawn by agreement"]

1. e4 {[%clk 0:04:53]} 1... c5 {[%clk 0:04:58.3]} 2. Nc3 {[%clk 0:04:50]} 2...
d6 {[%clk 0:04:56.7]} 3. g3 {[%clk 0:04:48.9]} 3... Nf6 {[%clk 0:04:56]} 4. d3
{[%clk 0:04:46.6]} 4... Nc6 {[%clk 0:04:55.4]} 5. Bg2 {[%clk 0:04:41.6]} 5...
Bg4 {[%clk 0:04:54.7]} 6. Nge2 {[%clk 0:04:30.5]} 6... Nd4 {[%clk 0:04:52.1]} 7.
O-O {[%clk 0:04:21.1]} 7... Bxe2 {[%clk 0:04:39.2]} 8. Nxe2 {[%clk 0:04:18.7]}
8... Nxe2+ {[%clk 0:04:38.3]} 9. Qxe2 {[%clk 0:04:17.1]} 9... e5 {[%clk
0:04:33.2]} 10. f4 {[%clk 0:04:00.2]} 10... exf4 {[%clk 0:04:31.1]} 11. Bxf4
{[%clk 0:03:57.8]} 11... Be7 {[%clk 0:04:30.2]} 12. Rab1 {[%clk 0:03:46.8]}
12... O-O {[%clk 0:04:27.4]} 13. e5 {[%clk 0:03:45.1]} 13... dxe5 {[%clk
0:04:21.3]} 14. Bxe5 {[%clk 0:03:36.4]} 14... Qd7 {[%clk 0:04:09.9]} 15. Qf3
{[%clk 0:03:29.2]} 15... b6 {[%clk 0:04:00.7]} 16. Qf4 {[%clk 0:03:11]} 16...
Rad8 {[%clk 0:03:51.3]} 17. Qg5 {[%clk 0:03:06.6]} 17... h6 {[%clk 0:03:45.1]}
18. Qf4 {[%clk 0:02:54.3]} 18... Qg4 {[%clk 0:03:41.7]} 19. h3 {[%clk 0:02:45]}
19... Qxf4 {[%clk 0:03:36.9]} 20. Bxf4 {[%clk 0:02:43.3]} 20... Bd6 {[%clk
0:03:33.6]} 21. Rbe1 {[%clk 0:02:33.4]} 21... Bxf4 {[%clk 0:03:31]} 22. Rxf4
{[%clk 0:02:27.1]} 22... Rfe8 {[%clk 0:03:27.6]} 23. Rff1 {[%clk 0:02:23.4]}
23... Nh5 {[%clk 0:03:20.8]} 1/2-1/2

[Event "Live Chess"]
[Site "Chess.com"]
[Date "2024.06.02"]
[Round "-"]
[White "NottheBishopSacrifice"]
[Black "Ferrarifan27"]
[Result "1-0"]
[WhiteElo "2322"]
[BlackElo "2136"]
[TimeControl "300"]
[EndTime "6:25:33 PDT"]
[Termination "NottheBishopSacrifice won by checkmate"]

1. d4 {[%clk 0:04:57.6]} 1... Nf6 {[%clk 0:04:58.1]} 2. Nf3 {[%clk 0:04:56.8]}
2... d5 {[%clk 0:04:56.4]} 3. Bf4 {[%clk 0:04:55.2]} 3... e6 {[%clk 0:04:54.7]}
4. e3 {[%clk 0:04:54.2]} 4... Be7 {[%clk 0:04:53.8]} 5. c4 {[%clk 0:04:52]} 5...
O-O {[%clk 0:04:51.8]} 6. Nc3 {[%clk 0:04:51.1]} 6... c6 {[%clk 0:04:50.3]} 7.
Be2 {[%clk 0:04:49.6]} 7... Nbd7 {[%clk 0:04:47.7]} 8. O-O {[%clk 0:04:49]} 8...
b6 {[%clk 0:04:44]} 9. h3 {[%clk 0:04:48.3]} 9... Bb7 {[%clk 0:04:43.2]} 10. Rc1
{[%clk 0:04:46]} 10... Rc8 {[%clk 0:04:41.3]} 11. Qa4 {[%clk 0:04:43.3]} 11...
a6 {[%clk 0:04:31.9]} 12. cxd5 {[%clk 0:04:40.4]} 12... exd5 {[%clk 0:04:29.2]}
13. Qc2 {[%clk 0:04:33.8]} 13... c5 {[%clk 0:04:26.4]} 14. Ne5 {[%clk
0:04:32.2]} 14... Nxe5 {[%clk 0:04:23.3]} 15. dxe5 {[%clk 0:04:31.1]} 15... Nd7
{[%clk 0:04:20]} 16. Rcd1 {[%clk 0:04:28.8]} 16... Nb8 {[%clk 0:04:01.5]} 17.
Bf3 {[%clk 0:04:25.1]} 17... Nc6 {[%clk 0:03:56.3]} 18. Nxd5 {[%clk 0:04:21.2]}
18... Qe8 {[%clk 0:03:49.5]} 19. Nxb6 {[%clk 0:04:19.9]} 19... Nb4 {[%clk
0:03:46.8]} 20. Qe2 {[%clk 0:04:13.4]} 20... Bxf3 {[%clk 0:03:45.7]} 21. Qxf3
{[%clk 0:04:12.4]} 21... Rd8 {[%clk 0:03:40.6]} 22. a3 {[%clk 0:04:09]} 22...
Nd3 {[%clk 0:03:32.5]} 23. Nc4 {[%clk 0:04:04.8]} 23... Qb5 {[%clk 0:03:29.2]}
24. Nd6 {[%clk 0:03:51.4]} 24... Qxb2 {[%clk 0:03:25.9]} 25. Rxd3 {[%clk
0:03:48.9]} 25... c4 {[%clk 0:03:22.2]} 26. Rdd1 {[%clk 0:03:47]} 26... Qxa3
{[%clk 0:03:19.7]} 27. Nxc4 {[%clk 0:03:45]} 27... Qb4 {[%clk 0:03:18.2]} 28.
Nd6 {[%clk 0:03:43.3]} 28... a5 {[%clk 0:03:14.7]} 29. Rb1 {[%clk 0:03:40.2]}
29... Qc5 {[%clk 0:03:13.2]} 30. Rfc1 {[%clk 0:03:38.3]} 30... Qa7 {[%clk
0:03:11.6]} 31. Nb5 {[%clk 0:03:34.5]} 31... Qa6 {[%clk 0:03:08.8]} 32. Nc7
{[%clk 0:03:31.6]} 32... Qa7 {[%clk 0:03:07.2]} 33. Nd5 {[%clk 0:03:30.3]} 33...
Ba3 {[%clk 0:03:02.7]} 34. Rd1 {[%clk 0:03:26.5]} 34... Kh8 {[%clk 0:02:59.5]}
35. Nc3 {[%clk 0:03:16.9]} 35... Bb4 {[%clk 0:02:55.2]} 36. Rxd8 {[%clk
0:03:14.1]} 36... Rxd8 {[%clk 0:02:55.1]} 37. Ne4 {[%clk 0:03:11.9]} 37... Qe7
{[%clk 0:02:47.3]} 38. Nd6 {[%clk 0:03:09.5]} 38... f6 {[%clk 0:02:37.1]} 39.
Nf5 {[%clk 0:03:07]} 39... Qf7 {[%clk 0:02:33.8]} 40. exf6 {[%clk 0:03:02.8]}
40... Qxf6 {[%clk 0:02:32.5]} 41. Nd4 {[%clk 0:03:00.4]} 41... Bc3 {[%clk
0:02:23.6]} 42. Rb7 {[%clk 0:02:53.4]} 42... Bxd4 {[%clk 0:02:19.9]} 43. exd4
{[%clk 0:02:50.4]} 43... Qxd4 {[%clk 0:02:18.6]} 44. Be3 {[%clk 0:02:41.3]}
44... Qa1+ {[%clk 0:02:13.3]} 45. Kh2 {[%clk 0:02:40.3]} 45... Qe5+ {[%clk
0:02:12.4]} 46. Qg3 {[%clk 0:02:36.7]} 46... Qf6 {[%clk 0:02:11.5]} 47. Bg5
{[%clk 0:02:34.5]} 47... Qc6 {[%clk 0:02:07.9]} 48. Rc7 {[%clk 0:02:30.3]} 48...
Qd6 {[%clk 0:02:03]} 49. Qxd6 {[%clk 0:02:27.5]} 49... Rxd6 {[%clk 0:02:00.7]}
50. Rc8+ {[%clk 0:02:26.2]} 50... Rd8 {[%clk 0:01:59.1]} 51. Rxd8# {[%clk
0:02:25.6]} 1-0

[Event "Live Chess"]
[Site "Chess.com"]
[Date "2024.06.02"]
[Round "-"]
[White "beltmanjb"]
[Black "Tatarinov_Maxim"]
[Result "1/2-1/2"]
[WhiteElo "1706"]
[BlackElo "2276"]
[TimeControl "300"]
[EndTime "6:25:45 PDT"]
[Termination "Game drawn by agreement"]

1. d4 {[%clk 0:04:57.3]} 1... Nf6 {[%clk 0:04:58.7]} 2. c4 {[%clk 0:04:56.8]}
2... c5 {[%clk 0:04:56.4]} 3. d5 {[%clk 0:04:54.7]} 3... b5 {[%clk 0:04:55.2]}
4. cxb5 {[%clk 0:04:54]} 4... a6 {[%clk 0:04:54.7]} 5. bxa6 {[%clk 0:04:53.7]}
5... g6 {[%clk 0:04:54.1]} 6. Nc3 {[%clk 0:04:52]} 6... Bg7 {[%clk 0:04:53.6]}
7. e4 {[%clk 0:04:50.9]} 7... O-O {[%clk 0:04:52.8]} 8. a7 {[%clk 0:04:50]} 8...
Rxa7 {[%clk 0:04:51.6]} 9. Nf3 {[%clk 0:04:49.1]} 9... Qa5 {[%clk 0:04:47.4]}
10. Bd2 {[%clk 0:04:40.2]} 10... Qb6 {[%clk 0:04:46.1]} 11. Qc2 {[%clk
0:04:36.4]} 11... d6 {[%clk 0:04:43.1]} 12. a4 {[%clk 0:04:27.8]} 12... Ba6
{[%clk 0:04:40.3]} 13. Bb5 {[%clk 0:04:25.6]} 13... Bxb5 {[%clk 0:04:34.9]} 14.
Nxb5 {[%clk 0:04:24.3]} 14... Ra8 {[%clk 0:04:32.5]} 15. O-O {[%clk 0:04:21.8]}
15... Na6 {[%clk 0:04:31.9]} 16. Bc3 {[%clk 0:04:10.6]} 16... Nc7 {[%clk
0:04:29.1]} 17. Nxc7 {[%clk 0:04:03]} 17... Qxc7 {[%clk 0:04:29]} 18. Ra3 {[%clk
0:03:52.4]} 18... Rfb8 {[%clk 0:04:26.7]} 19. Rb1 {[%clk 0:03:50.4]} 19... Nd7
{[%clk 0:04:13.2]} 20. Nd2 {[%clk 0:03:33.5]} 20... Rb7 {[%clk 0:03:53.9]} 21.
f4 {[%clk 0:03:22.6]} 21... Rab8 {[%clk 0:03:29.1]} 22. Nc4 {[%clk 0:03:18.2]}
22... Bxc3 {[%clk 0:03:20.2]} 23. Qxc3 {[%clk 0:03:16.5]} 23... Rb4 {[%clk
0:03:19.4]} 24. a5 {[%clk 0:03:09]} 24... Ra8 {[%clk 0:02:57.7]} 25. Rb3 {[%clk
0:02:57.9]} 25... Qb7 {[%clk 0:02:39.7]} 26. Rxb4 {[%clk 0:02:47.9]} 26... cxb4
{[%clk 0:02:39.6]} 27. Qd4 {[%clk 0:02:40.3]} 27... Nc5 {[%clk 0:02:38.9]} 28.
e5 {[%clk 0:02:29.3]} 28... Nb3 {[%clk 0:02:32.1]} 29. Qb6 {[%clk 0:02:19.8]}
29... Nxa5 {[%clk 0:02:24.1]} 30. Qxb7 {[%clk 0:02:03.4]} 30... Nxb7 {[%clk
0:02:24]} 31. exd6 {[%clk 0:02:02.6]} 31... Nxd6 {[%clk 0:02:16.5]} 32. Nxd6
{[%clk 0:01:57.9]} 32... exd6 {[%clk 0:02:16.4]} 33. Rc1 {[%clk 0:01:51.8]}
33... Ra2 {[%clk 0:02:05.4]} 34. Rc6 {[%clk 0:01:46.7]} 34... Rxb2 {[%clk
0:02:03.8]} 35. Rxd6 {[%clk 0:01:46.4]} 35... Kg7 {[%clk 0:01:58.2]} 36. Rb6
{[%clk 0:01:44.5]} 36... Rd2 {[%clk 0:01:54.3]} 37. d6 {[%clk 0:01:42.8]} 37...
b3 {[%clk 0:01:50.6]} 38. Rxb3 {[%clk 0:01:41.3]} 38... Rxd6 {[%clk 0:01:48.9]}
39. Kf2 {[%clk 0:01:36]} 39... Rd2+ {[%clk 0:01:46.9]} 40. Kg3 {[%clk
0:01:34.7]} 40... h5 {[%clk 0:01:43.5]} 41. Kf3 {[%clk 0:01:30.7]} 41... Ra2
{[%clk 0:01:38.7]} 42. h3 {[%clk 0:01:27.5]} 42... Ra6 {[%clk 0:01:32.5]} 43. g4
{[%clk 0:01:25.9]} 43... Ra5 {[%clk 0:01:29.5]} 44. Rc3 {[%clk 0:01:22.9]} 44...
Ra4 {[%clk 0:01:16.7]} 45. Rb3 {[%clk 0:01:21.5]} 45... Rc4 {[%clk 0:01:09.3]}
1/2-1/2